bitfinex-derivatives/quotes_ETHF0:USTF0_20240910
["timestamp","ask_amount","ask_price","bid_price","bid_amount"]
[1725997263356,0.2,2380.0,2379.6,3.28]
[1725997263544,0.62014,2380.0,2379.6,3.28]
[1725997263850,0.62015,2380.0,2379.7,40.8]
[1725997264752,0.2,2380.0,2379.7,40.8]
[1725997265249,0.2,2380.0,2379.3,0.3827]
[1725997265250,4.2016,2379.9,2379.3,0.3827]
[1725997265552,0.42028,2379.3,2379.0,44.50032]
[1725997265847,0.377,2379.2,2379.0,44.50032]
[1725997266249,0.377,2379.2,2379.0,44.08]
[1725997266555,0.377,2379.2,2378.8,3.28]
[1725997266851,0.377,2379.2,2378.8,3.70035]
[1725997266852,0.42031,2379.1,2378.8,3.70035]
[1725997267045,0.42031,2379.1,2378.9,40.8]
[1725997270052,0.42032,2379.0,2378.9,40.8]
[1725997270247,0.377,2379.2,2378.9,40.8]
[1725997270448,0.79728,2379.2,2378.9,41.22033]
[1725997270951,0.79728,2379.2,2378.9,41.61903]
[1725997271144,0.79728,2379.2,2378.9,41.99143]
[1725997271452,0.79728,2379.2,2378.9,41.5711]
[1725997271752,0.79728,2379.2,2378.9,41.99144]
[1725997272246,1.47112,2379.0,2378.9,40.8]
[1725997272448,4.62352,2379.0,2378.9,40.8]
[1725997273051,4.62352,2379.0,2378.2,3.28]
[1725997273052,10.9875,2379.0,2378.2,3.28]
[1725997273250,0.4204,2378.6,2378.3,0.42043]
[1725997273452,0.42043,2378.4,2378.2,3.70045]
[1725997273948,0.42042,2378.5,2378.3,40.8]
[1725997274255,0.42042,2378.5,2378.3,41.22044]
[1725997275255,0.379,2379.0,2378.4,7.4848]
[1725997275450,0.42035,2378.9,2378.6,3.70037]
[1725997275657,0.42035,2378.9,2378.7,0.42037]
[1725997275854,0.42035,2378.8,2378.6,0.42038]
[1725997276350,0.42037,2378.7,2378.5,0.4204]
[1725997276754,0.42036,2378.8,2378.6,0.42038]
[1725997276945,0.79933,2379.0,2378.8,0.42035]
[1725997277149,0.42032,2379.0,2378.8,0.42034]
[1725997277655,0.377,2379.2,2378.7,1.20516]
[1725997277656,0.42034,2378.9,2378.7,1.20516]
[1725997277852,0.42035,2378.8,2378.7,0.7848]
[1725997278248,3.28,2379.0,2378.3,40.8]
[1725997278448,0.80729,2378.7,2378.5,0.4204]
[1725997278648,0.42039,2378.6,2378.4,0.42041]
[1725997278945,0.42039,2378.6,2378.5,0.42041]
[1725997279355,0.42039,2378.6,2378.4,0.42042]
[1725997279556,0.42039,2378.6,2378.5,0.42041]
[1725997279957,0.42039,2378.6,2378.4,0.42041]
[1725997281353,0.42041,2378.5,2378.3,41.22043]
[1725997282147,0.42041,2378.5,2378.4,0.42042]
[1725997283168,0.42041,2378.5,2378.3,41.22043]
[1725997284056,0.4204,2378.6,2378.3,40.8]
[1725997284262,0.42038,2378.7,2378.4,3.28]
[1725997284472,0.4204,2378.6,2378.4,3.70041]
[1725997284754,0.42038,2378.7,2378.5,0.42041]
[1725997285162,0.42039,2378.6,2378.5,0.42041]
[1725997285461,1.05091,2378.8,2378.4,3.70042]
[1725997285757,0.4204,2378.6,2378.5,0.42041]
[1725997286057,0.4204,2378.6,2378.4,3.70041]
[1725997286452,1.05098,2378.6,2378.3,40.8]
[1725997286651,0.42042,2378.4,2378.3,40.8]
[1725997287252,0.42042,2378.4,2378.3,41.22044]
[1725997287860,0.42042,2378.5,2378.3,41.22044]
[1725997288168,0.42042,2378.5,2378.4,0.42042]
[1725997288359,2.69728106,2378.8,2378.3,44.08]
[1725997288557,0.42042,2378.5,2378.3,40.8]
[1725997288765,0.42042,2378.5,2378.4,0.42042]
[1725997289467,1.41764,2378.7,2378.3,40.8]
[1725997289468,3.06401106,2378.7,2378.3,40.8]
[1725997289666,3.06401106,2378.7,2378.4,0.42042]
[1725997289667,0.42042,2378.5,2378.4,0.42042]
[1725997289967,1.41764,2378.7,2378.3,41.22043]
[1725997290167,0.42042,2378.5,2378.4,0.42042]
[1725997291265,0.42042,2378.4,2378.3,41.22043]
[1725997291868,0.42042,2378.4,2378.3,40.8]
[1725997292076,0.42046,2378.2,2378.1,0.8066]
[1725997292569,1.47162,2378.2,2378.1,41.2035]
[1725997292762,0.4205,2378.0,2377.9,0.4205]
[1725997292963,0.42051,2378.0,2377.8,0.7605]
[1725997293163,0.42051,2378.0,2377.8,41.98102]
[1725997294066,0.42051,2377.9,2377.8,41.98102]
[1725997294265,0.42051,2378.0,2377.8,41.98102]
[1725997295964,0.42051,2378.0,2377.9,0.42051]
[1725997296268,0.3982,2378.3,2377.9,3.28]
[1725997296468,0.3982,2378.3,2378.1,0.42047]
[1725997296469,0.42045,2378.3,2378.1,0.42047]
[1725997296666,1.0511,2378.4,2378.1,0.42047]
[1725997296872,0.42044,2378.3,2378.1,0.42047]
[1725997297065,1.0511,2378.4,2378.1,0.42047]
[1725997297472,0.42047,2378.2,2378.0,0.42048]
[1725997297672,0.42045,2378.3,2378.1,0.42046]
[1725997297875,0.42043,2378.4,2378.2,0.42046]
[1725997298174,0.42043,2378.4,2378.3,0.3851]
[1725997299769,0.42043,2378.4,2378.3,0.7869]
[1725997300277,6.34380106,2378.8,2378.3,0.7869]
[1725997300468,0.42042,2378.5,2378.3,1.20734]
[1725997301580,0.42042,2378.5,2378.3,0.7869]
[1725997302774,0.42042,2378.5,2378.3,1.20734]
[1725997303279,0.3665,2378.8,2378.3,8.2717]
[1725997303580,0.42039,2378.6,2378.4,0.42042]
[1725997304383,0.42038,2378.7,2378.5,0.42041]
[1725997304581,0.42038,2378.7,2378.5,0.4204]
[1725997304777,3.07829106,2379.0,2378.4,0.20529993]
[1725997305084,5.33017106,2378.8,2378.0,0.42048]
[1725997305272,2.05017106,2378.8,2378.5,3.28]
[1725997305471,2.06672106,2378.9,2378.5,3.28]
[1725997305676,0.3811,2379.0,2378.6,0.7803]
[1725997305677,2.02747106,2379.0,2378.6,0.7803]
[1725997305877,0.42035,2378.9,2378.6,0.7803]
[1725997306179,0.42036,2378.8,2378.6,0.7803]
[1725997306388,0.42035,2378.9,2378.6,0.7803]
[1725997306883,2.06666106,2379.2,2378.7,7.484]
[1725997307177,4.52228,2379.3,2378.9,0.42033]
[1725997307379,2.47042106,2379.4,2379.0,40.8]
[1725997307590,0.4038,2379.4,2379.1,0.7799]
[1725997308780,2.02657106,2379.5,2379.2,0.42027]
[1725997309075,1.64637106,2379.6,2379.2,0.42027]
[1725997309275,1.64637106,2379.6,2379.3,3.28]
[1725997309581,1.64637106,2379.8,2379.5,0.42022]
[1725997309783,2.03547106,2379.9,2379.6,3.6806]
[1725997310377,0.62014,2380.0,2379.8,3.28]
[1725997310378,1.84637106,2380.0,2379.8,3.28]
[1725997310676,1.84637106,2380.0,2379.7,0.4046]
[1725997310677,0.2,2380.0,2379.7,0.4046]
[1725997310876,1.84637106,2380.0,2379.7,0.4046]
[1725997311282,1.84637106,2380.0,2379.7,0.61049336]
[1725997311790,1.84637106,2380.0,2379.7,0.4046]
[1725997311977,2.26652106,2380.0,2379.6,0.61042535]
[1725997312180,1.64637106,2379.9,2379.6,0.61042535]
[1725997312385,1.64637106,2379.9,2379.6,1.03063535]
[1725997312584,1.84637106,2380.0,2379.6,0.61042535]
[1725997313384,2.26652106,2380.0,2379.6,0.61042535]
[1725997313780,2.26652106,2380.0,2379.6,0.4006]
[1725997314183,1.84637106,2380.0,2379.6,0.4006]
[1725997314785,2.26652106,2380.0,2379.6,0.4006]
[1725997316592,0.3909,2379.9,2379.6,0.82081]
[1725997317289,0.3909,2379.9,2379.6,0.4006]
[1725997317493,0.4032,2379.8,2379.6,0.4006]
[1725997318086,0.4032,2379.8,2379.4,3.6652]
[1725997318087,0.4032,2379.8,2379.4,0.3852]
[1725997318285,0.4032,2379.8,2379.2,3.652]
[1725997318286,2.86046106,2379.8,2379.2,3.28]
[1725997318492,2.86046106,2379.8,2379.4,0.42024]
[1725997318882,1.21409,2379.8,2379.4,0.42024]
[1725997319279,2.86046106,2379.8,2379.4,0.42024]
[1725997319489,0.4202,2379.7,2379.4,0.42024]
[1725997320294,0.42021,2379.6,2379.3,0.42025]
[1725997320493,0.42021,2379.7,2379.3,0.42025]
[1725997320796,2.44027106,2379.8,2379.3,0.42027]
[1725997320997,0.42022,2379.6,2379.3,0.42027]
[1725997321207,1.0505,2379.7,2379.1,0.3942]
[1725997321387,1.0505,2379.7,2379.0,44.4487]
[1725997321388,0.42024,2379.5,2379.0,44.4487]
[1725997321582,0.42024,2379.5,2379.2,0.42028]
[1725997321996,0.42024,2379.5,2379.1,0.42029]
[1725997322205,0.42024,2379.5,2379.0,44.4487]
[1725997322206,0.42024,2379.5,2379.2,0.42028]
[1725997322393,1.64637106,2379.6,2379.1,0.4203]
[1725997322594,2.06657106,2379.7,2379.4,0.42024]
[1725997322894,0.4202,2379.7,2379.4,0.42025]
[1725997323098,1.21409,2379.8,2379.5,0.42023]
[1725997323593,0.7939,2379.8,2379.4,0.3879]
[1725997323794,0.7939,2379.8,2379.3,3.28]
[1725997323991,0.4202,2379.7,2379.4,0.42024]
[1725997325387,4.2024,2379.6,2379.0,41.1687]
[1725997325588,5.97687106,2379.7,2379.0,41.1687]
[1725997325895,0.42028,2379.2,2379.0,41.58901]
[1725997326089,5.97687106,2379.7,2379.1,0.4203]
[1725997326090,0.42025,2379.4,2379.1,0.4203]
[1725997326290,0.3673,2379.3,2379.1,0.4203]
[1725997326690,0.4202,2379.7,2379.5,0.42022]
[1725997326902,0.4202,2379.7,2379.2,3.6698]
[1725997327193,0.4202,2379.7,2379.4,0.42024]
[1725997327500,1.17819,2379.8,2379.5,0.42022]
[1725997327799,0.758,2379.8,2379.6,0.42021]
[1725997327997,0.3673,2379.8,2379.7,0.4202]
[1725997328188,0.3673,2379.8,2379.6,0.42021]
[1725997328401,0.78748,2379.8,2379.5,0.81962]
[1725997328796,0.3673,2379.8,2379.6,0.42021]
[1725997328988,0.3673,2379.8,2379.6,0.63253355]
[1725997329300,0.3673,2379.8,2379.5,0.81962]
[1725997329496,0.4202,2379.7,2379.5,0.81962]
[1725997330098,0.78749,2379.8,2379.5,0.81962]
[1725997330295,0.3673,2379.8,2379.5,0.81962]
[1725997330491,0.42021,2379.6,2379.4,3.70024]
[1725997330691,0.42023,2379.5,2379.3,0.3944]
[1725997330892,0.4002,2379.7,2379.3,0.81466]
[1725997331088,0.4002,2379.7,2379.4,0.42024]
[1725997331302,0.42022,2379.6,2379.4,0.42024]
[1725997331600,0.42021,2379.6,2379.4,0.42024]
[1725997331903,0.8204,2379.7,2379.4,0.42024]
[1725997332294,0.42021,2379.6,2379.4,0.42025]
[1725997332598,0.98805,2380.0,2379.5,4.2024]
[1725997332892,0.62015,2380.0,2379.8,0.42018]
[1725997333393,0.2,2380.0,2379.8,0.42017]
[1725997333589,0.2,2380.0,2379.8,0.42016]
[1725997333789,0.2,2380.0,2379.9,0.4008]
[1725997334000,0.62014,2380.0,2379.7,0.57948969]
[1725997334189,0.2,2380.0,2379.8,0.42018]
[1725997334503,0.62014,2380.0,2379.8,0.42018]
[1725997335694,0.2,2380.0,2379.8,0.42018]
[1725997336097,0.62015,2380.0,2379.7,3.85948969]
[1725997336294,0.62015,2380.0,2379.7,4.27966969]
[1725997336295,0.42016,2379.9,2379.7,4.27966969]
[1725997336500,0.2,2380.0,2379.5,0.42022]
[1725997336802,0.4002,2379.8,2379.4,3.28]
[1725997336999,0.4002,2379.8,2379.6,0.4202]
[1725997337200,0.4002,2379.8,2379.7,0.20736203]
[1725997337402,0.62015,2380.0,2379.7,0.62754203]
[1725997337704,0.62015,2380.0,2379.7,0.42018]
[1725997337902,0.62015,2380.0,2379.8,0.42018]
[1725997338103,0.62015,2380.0,2379.8,0.63027463]
[1725997338309,0.2,2380.0,2379.8,0.63027463]
[1725997338803,0.2,2380.0,2379.9,0.3813]
[1725997339106,0.2,2380.0,2379.5,0.42022]
[1725997339107,0.42018,2379.8,2379.5,0.42022]
[1725997339401,0.42018,2379.8,2379.6,0.63030463]
[1725997339610,0.4202,2379.7,2379.6,0.21009463]
[1725997340005,0.4202,2379.7,2379.4,4.08154]
[1725997340202,0.3801,2379.6,2379.4,4.08154]
[1725997340404,0.80033,2379.6,2379.4,3.28]
[1725997340708,1.55163,2379.6,2379.3,0.79666]
[1725997340902,1.1314,2379.6,2379.4,0.42025]
[1725997341612,0.42017,2379.9,2379.4,3.28]
[1725997341806,0.42017,2379.9,2379.6,0.42021]
[1725997342007,0.42017,2379.9,2379.6,0.63110339]
[1725997342710,0.42017,2379.9,2379.7,0.3892]
[1725997343018,0.42018,2379.8,2379.7,0.3892]
[1725997343307,0.42017,2379.9,2379.7,0.3892]
[1725997344214,1.84637106,2380.0,2379.4,3.28]
[1725997344405,1.84637106,2380.0,2379.5,0.3905]
[1725997344613,0.42017,2379.9,2379.6,0.62838742]
[1725997345308,0.2,2380.0,2379.8,0.42017]
[1725997345617,0.62015,2380.0,2379.8,0.42017]
[1725997346004,0.2,2380.0,2379.8,0.42017]
[1725997346310,0.2,2380.0,2379.7,0.3997]
[1725997346607,0.2,2380.0,2379.8,5.61481244]
[1725997346810,0.2,2380.0,2379.8,0.79887]
[1725997347106,0.2,2380.0,2379.9,4.2016]
[1725997348016,0.2,2380.0,2379.9,45.0016]
[1725997348323,0.62014,2380.0,2379.9,40.8]
[1725997348501,0.42016,2379.9,2379.8,0.3787]
[1725997349012,1.84637106,2380.0,2379.8,41.80515741]
[1725997349324,0.2,2380.0,2379.9,0.61414508]
[1725997349499,0.2,2380.0,2379.8,41.80515741]
[1725997349500,0.62014,2380.0,2379.8,41.38498741]
[1725997349900,0.62014,2380.0,2379.8,41.80515741]
[1725997350111,0.62014,2380.0,2379.8,41.38498741]
[1725997350307,0.2,2380.0,2379.8,41.80515741]
[1725997350517,2.26652106,2380.0,2379.8,45.08515741]
[1725997351217,2.26652106,2380.0,2379.9,0.61414586]
[1725997351407,1.84637106,2380.0,2379.9,0.61414586]
[1725997351807,0.62014,2380.0,2379.9,0.61414586]
[1725997352715,0.62014,2380.0,2379.8,41.81123211]
[1725997353012,1.65032168,2379.9,2379.8,41.81123211]
[1725997353315,1.65032168,2379.9,2379.8,42.42535735]
[1725997353706,1.65032168,2379.9,2379.8,43.51847168]
[1725997354617,1.65032168,2379.9,2379.8,42.21299524]
[1725997354913,0.2,2380.0,2379.9,0.42016]
[1725997355223,0.2,2380.0,2379.9,2.01651066]
[1725997355421,0.2,2380.0,2379.9,3.10703325]
[1725997355609,0.2,2380.0,2379.9,7.30863325]
[1725997355917,0.2,2380.0,2379.9,3.10703325]
[1725997356313,0.2,2380.0,2379.9,2.12479783]
[1725997356915,0.2,2380.0,2379.9,3.1063781]
[1725997357217,0.2,2380.0,2379.9,2.12479783]
[1725997357413,0.2,2380.0,2379.9,1.03427524]
[1725997357617,1.85032168,2380.0,2379.9,2.1242559]
[1725997357808,1.85032168,2380.0,2379.9,1.03427524]
[1725997358209,1.85032168,2380.0,2379.9,1.2495428]
[1725997358610,0.2,2380.0,2379.9,22.1135377]
[1725997358810,0.2,2380.0,2379.9,16.68467346]
[1725997359206,0.2,2380.0,2379.9,15.08918551]
[1725997359410,0.2,2380.0,2379.9,24.31998416]
[1725997359725,0.3879529,2380.7,2380.5,1.05014]
[1725997359907,3.16386176,2381.4,2380.6,9.62509139]
[1725997359908,2.20205945,2381.3,2380.6,9.62509139]
[1725997360113,0.42680804,2381.3,2381.2,3.28]
[1725997360313,0.42680804,2381.3,2381.2,44.08]
[1725997360908,0.42680804,2381.3,2381.2,40.8]
[1725997366819,0.41993,2381.2,2381.1,3.28]
[1725997367220,0.41993,2381.2,2381.1,44.08]
[1725997368430,0.41995,2381.1,2380.9,0.41997]
[1725997368622,0.81434,2381.2,2381.0,0.41997]
[1725997368822,0.41995,2381.1,2381.0,41.21997]
[1725997369117,0.41995,2381.1,2381.0,40.8]
[1725997370025,0.81434,2381.2,2381.0,41.21997]
[1725997370226,0.81434,2381.2,2381.0,40.8]
[1725997370421,0.81434,2381.2,2381.0,41.21996]
[1725997370732,0.41994,2381.2,2381.0,41.21996]
[1725997371029,0.41994,2381.2,2381.1,0.3764]
[1725997371326,0.41993,2381.2,2381.1,0.3764]
[1725997373123,0.00689804,2381.3,2381.0,40.8]
[1725997373317,0.41994,2381.2,2381.1,0.41995]
[1725997373529,0.41994,2381.2,2381.0,41.21996]
[1725997374524,0.42682804,2381.3,2381.1,0.41994]
[1725997374722,0.00689804,2381.3,2381.2,0.82013]
[1725997375732,0.42680804,2381.3,2381.2,0.4002]
[1725997376723,0.00689804,2381.3,2381.2,0.4002]
[1725997376926,0.42680804,2381.3,2381.2,0.4002]
[1725997377121,0.00689804,2381.3,2381.2,0.4002]
[1725997377329,0.00689804,2381.3,2381.2,0.82013]
[1725997377538,0.42680804,2381.3,2381.2,0.4002]
[1725997377833,0.00689804,2381.3,2381.2,0.4002]
[1725997378226,0.42680804,2381.3,2381.2,0.4002]
[1725997378431,0.00689804,2381.3,2381.2,4.10013]
[1725997378833,0.00689804,2381.3,2381.2,8.29933]
[1725997381737,0.00689804,2381.3,2381.2,16.39899]
[1725997381939,4.102,2381.8,2381.7,0.41984]
[1725997382234,1.04924,2382.6,2381.7,0.41984]
[1725997382235,4.8531,2382.5,2381.9,0.41981]
[1725997382438,0.7511,2382.5,2382.0,3.28]
[1725997382632,0.7511,2382.5,2382.1,40.8]
[1725997382833,0.7511,2382.5,2382.3,3.28]
[1725997383346,0.41972,2382.4,2382.1,44.08]
[1725997384330,0.7511,2382.5,2382.2,3.28]
[1725997384331,0.41971,2382.5,2382.2,3.28]
[1725997384534,0.41975,2382.3,2382.1,40.8]
[1725997384737,0.41975,2382.2,2382.1,40.8]
[1725997385235,0.81563,2382.4,2382.1,40.8]
[1725997385436,0.3959,2382.4,2382.1,40.8]
[1725997385631,0.3689,2382.6,2382.3,3.28]
[1725997386536,0.78858,2382.6,2382.3,3.28]
[1725997386745,0.3689,2382.6,2382.3,4.07663]
[1725997387243,4.102,2383.2,2382.6,0.41968]
[1725997387537,4.102,2383.2,2382.7,0.3878]
[1725997387538,0.41965,2382.8,2382.7,0.3878]
[1725997387733,1.04902,2383.1,2382.6,3.28]
[1725997387929,0.41965,2382.9,2382.6,3.28]
[1725997388339,0.41965,2382.9,2382.6,3.69968]
[1725997388340,0.378,2382.8,2382.6,3.69968]
[1725997388732,0.41962,2383.0,2382.7,0.41967]
[1725997388935,0.41962,2383.0,2382.6,3.69967]
[1725997389137,0.41962,2383.0,2382.7,0.41966]
[1725997389338,0.3887,2383.2,2382.8,3.28]
[1725997389541,0.4196,2383.1,2382.9,0.365]
[1725997389751,0.3887,2383.2,2382.9,0.365]
[1725997389752,0.80829,2383.2,2382.9,0.365]
[1725997389952,0.80829,2383.2,2382.9,0.78463]
[1725997390456,0.3887,2383.2,2382.5,0.3878]
[1725997390653,1.04904,2383.0,2382.5,0.3878]
[1725997390853,1.04917,2382.7,2382.1,40.8]
[1725997391052,0.41974,2382.3,2382.1,40.8]
[1725997391252,0.756,2382.6,2382.1,40.8]
[1725997391253,0.41975,2382.2,2382.1,40.8]
[1725997391662,1.0493,2382.4,2382.0,3.28]
[1725997391663,0.41977,2382.1,2382.0,3.28]
[1725997391959,0.756,2382.6,2382.0,3.28]
[1725997392163,1.1358,2382.6,2382.1,40.8]
[1725997392460,0.41974,2382.3,2382.2,3.28]
[1725997392652,0.41972,2382.4,2382.2,3.28]
[1725997393049,0.41972,2382.4,2382.1,41.1665]
[1725997393254,0.41969,2382.6,2382.3,3.28]
[1725997393455,0.79678,2382.7,2382.3,3.69973]
[1725997393650,0.79678,2382.7,2382.3,3.28]
[1725997393856,0.41971,2382.5,2382.3,3.28]
[1725997394053,0.41972,2382.4,2382.2,3.28]
[1725997394559,0.41975,2382.2,2382.1,40.8]
[1725997394759,0.41979,2382.1,2381.9,3.28]
[1725997395062,0.3771,2382.1,2381.3,0.7883]
[1725997395254,0.3771,2382.1,2381.3,0.395]
[1725997395255,0.41987,2381.6,2381.3,0.395]
[1725997395454,1.04948,2382.0,2381.3,0.395]
[1725997395762,0.3653,2381.5,2381.4,44.08]
[1725997396456,0.41983,2381.8,2381.4,44.08]
[1725997396658,0.41983,2381.8,2381.6,3.28]
[1725997397060,0.3653,2381.9,2381.6,3.28]
[1725997397265,0.41984,2381.7,2381.6,3.28]
[1725997397559,0.3653,2381.9,2381.6,3.28]
[1725997397759,0.78511,2381.9,2381.8,3.28]
[1725997398857,0.78511,2381.9,2381.4,41.21989]
[1725997398858,0.78511,2381.9,2381.6,3.28]
[1725997399058,0.41982,2381.8,2381.6,3.28]
[1725997399456,0.3653,2381.9,2381.6,3.28]
[1725997399457,0.78511,2381.9,2381.6,3.28]
[1725997400360,0.3845,2382.3,2381.8,3.28]
[1725997400569,0.3845,2382.3,2381.9,0.3796]
[1725997400570,0.41978,2382.1,2381.9,0.3796]
[1725997400756,0.41976,2382.2,2381.9,0.3796]
[1725997400957,0.41977,2382.1,2381.9,0.3796]
[1725997401855,0.41979,2382.0,2381.9,0.3796]
[1725997402959,0.3916,2382.4,2382.2,0.41975]
[1725997403155,0.81133,2382.4,2382.2,3.28]
[1725997403458,1.04912,2382.9,2382.2,3.28]
[1725997403658,1.04912,2382.9,2382.6,3.28]
[1725997403659,0.41965,2382.8,2382.6,3.28]
[1725997403860,0.41965,2382.8,2382.6,3.69968]
[1725997404061,0.41965,2382.8,2382.7,40.8]
[1725997405570,0.41961,2383.1,2382.8,0.41964]
[1725997405861,0.41961,2383.1,2383.0,3.28]
[1725997406267,0.41959,2383.2,2383.0,3.28]
[1725997406463,0.4196,2383.1,2383.0,3.28]
[1725997406965,0.41959,2383.2,2383.0,3.28]
[1725997407468,0.4196,2383.1,2383.0,3.28]
[1725997408368,0.41955,2383.4,2383.1,0.4196]
[1725997408566,0.41955,2383.4,2383.3,3.28]
[1725997410073,0.41954,2383.5,2383.3,3.28]
[1725997410366,1.45291,2383.8,2383.4,3.28]
[1725997410562,1.04847,2384.3,2383.7,3.28]
[1725997410760,1.04838,2384.6,2384.2,3.28]
[1725997410960,0.41938,2384.3,2384.2,3.28]
[1725997411264,0.4042,2384.7,2383.8,3.28]
[1725997411265,0.41945,2383.9,2383.8,3.28]
[1725997411470,0.41945,2383.9,2383.8,44.08]
[1725997411861,1.46809,2383.9,2383.8,40.8]
[1725997412068,0.41953,2383.5,2383.4,0.20946782]
[1725997412271,0.41953,2383.5,2383.2,0.41957]
[1725997412470,0.41952,2383.6,2383.3,41.21956]
[1725997412764,0.41952,2383.6,2383.4,0.20717959]
[1725997412973,1.04864,2383.9,2383.4,0.62671959]
[1725997413162,0.41951,2383.6,2383.4,0.41954]
[1725997414069,0.3745,2384.0,2383.5,0.41953]
[1725997414270,0.41945,2384.0,2383.8,0.41947]
[1725997414574,1.41786,2384.4,2383.9,0.41945]
[1725997414873,0.41939,2384.3,2384.0,0.80783]
[1725997415063,0.4194,2384.2,2384.1,0.3872]
[1725997415571,1.04841,2384.5,2384.1,5.00102]
[1725997415572,0.41939,2384.3,2384.1,5.00102]
[1725997415765,0.41939,2384.3,2384.1,0.80662]
[1725997416268,0.41939,2384.3,2384.1,0.80661]
[1725997416463,0.4194,2384.3,2384.1,0.3872]
[1725997416670,0.4194,2384.2,2384.1,0.3872]
[1725997416869,0.4194,2384.3,2384.1,0.3872]
[1725997417070,0.41938,2384.4,2384.1,0.80662]
[1725997417467,0.41938,2384.4,2384.1,0.3872]
[1725997417771,1.04838,2384.5,2383.4,1.04885]
[1725997418075,2.50026,2384.7,2383.5,45.2239]
[1725997418271,0.4195,2383.7,2383.5,45.2239]
[1725997418778,0.41949,2383.8,2383.5,49.83862]
[1725997419077,4.313,2384.4,2383.5,40.8]
[1725997419078,0.41951,2383.6,2383.5,40.8]
[1725997419570,0.4195,2383.7,2383.5,40.8]
[1725997419773,0.41951,2383.6,2383.5,40.8]
[1725997420471,0.41948,2383.8,2383.5,40.8]
[1725997420678,2.1716,2384.1,2383.5,40.8]
[1725997420679,1.0486,2384.0,2383.5,40.8]
[1725997420975,0.4195,2383.7,2383.5,40.8]
[1725997421270,0.41949,2383.8,2383.5,40.8]
[1725997421568,0.41938,2384.3,2383.6,8.59006424]
[1725997421870,0.7548,2384.5,2384.0,0.41943]
[1725997422069,0.7548,2384.5,2384.2,0.4194]
[1725997422275,0.3718,2384.7,2384.1,9.55723981]
[1725997422571,0.3718,2384.7,2384.2,4.03]
[1725997422779,0.41936,2384.5,2384.2,4.4494]
[1725997423073,0.3679,2384.8,2384.3,4.1944]
[1725997423372,0.3679,2384.8,2384.2,4.03]
[1725997423373,0.3659,2385.1,2384.5,4.03]
[1725997423569,0.41933,2384.6,2384.5,4.03]
[1725997423770,0.41936,2384.5,2384.3,4.03]
[1725997423966,0.41932,2384.7,2384.4,41.21936]
[1725997424169,1.04816,2385.0,2384.4,41.21936]
[1725997424377,1.04816,2385.0,2384.5,0.41935]
[1725997424378,0.4193,2384.8,2384.5,0.41935]
[1725997424668,0.41935,2384.5,2384.4,40.8]
[1725997424972,1.0482,2384.9,2384.4,41.1888]
[1725997425177,0.41931,2384.8,2384.5,0.41934]
[1725997425381,0.41925,2385.1,2384.8,0.41929]
[1725997425670,1.04807,2385.2,2384.9,0.3888]
[1725997425876,1.04807,2385.2,2384.7,4.03]
[1725997426069,0.41927,2385.0,2384.7,4.81571]
[1725997426470,0.375,2385.3,2384.7,4.81571]
[1725997426471,0.41925,2385.1,2384.8,0.41929]
[1725997426675,0.41925,2385.1,2384.7,4.3964]
[1725997426875,0.41925,2385.1,2384.8,0.41929]
[1725997427276,0.41926,2385.0,2384.8,0.41929]
[1725997427580,0.41926,2385.0,2384.7,4.7886]
[1725997427581,1.63390999,2386.2,2384.9,4.45]
[1725997427778,0.7701,2386.8,2385.8,4.03]
[1725997427978,0.7701,2386.8,2385.4,1.04798]
[1725997427979,0.41903,2386.4,2386.2,4.03]
[1725997428280,0.4189,2387.1,2386.2,4.03]
[1725997428576,1.04694,2387.8,2386.2,4.03]
[1725997428577,0.41891,2387.0,2386.5,4.44899]
[1725997428781,1.04699,2387.7,2386.6,0.3664]
[1725997428782,1.04702,2387.6,2386.6,0.3664]
[1725997429478,0.4189,2387.1,2386.7,40.8]
[1725997429673,0.41892,2387.0,2386.7,40.8]
[1725997429870,1.04711,2387.4,2386.7,40.8]
[1725997430365,0.41895,2386.8,2386.7,40.8]
[1725997430681,1.46632,2386.8,2386.7,40.8]
[1725997430978,0.41895,2386.8,2386.7,40.8]
[1725997431379,0.3699,2386.9,2386.2,4.03]
[1725997431677,0.41897,2386.7,2386.2,4.44905]
[1725997431982,0.41897,2386.7,2386.3,40.8]
[1725997432172,0.41899,2386.6,2386.3,40.8]
[1725997432367,0.419,2386.5,2386.3,40.8]
[1725997432573,1.41723,2386.9,2386.3,40.8]
[1725997432574,0.41898,2386.6,2386.3,40.8]
[1725997432976,0.41902,2386.4,2385.9,0.4191]
[1725997433174,0.41906,2386.2,2385.8,4.03]
[1725997433369,0.41906,2386.2,2385.9,40.8]
[1725997433585,0.41904,2386.3,2385.9,40.8]
[1725997434183,0.41905,2386.3,2385.9,40.8]
[1725997434379,0.41906,2386.2,2385.9,40.8]
[1725997434680,0.3696,2386.5,2385.9,40.8]
[1725997434879,0.41906,2386.2,2385.9,40.8]
[1725997436378,0.41908,2386.1,2385.9,40.8]
[1725997436579,1.04755,2386.4,2385.9,40.8]
[1725997436783,0.41908,2386.1,2385.9,40.8]
[1725997437582,0.3696,2386.5,2385.9,40.8]
[1725997437583,0.41909,2386.0,2385.9,40.8]
[1725997437785,0.41907,2386.1,2385.9,40.8]